bitfinex/quotes_SOLUSD_20240626
["timestamp","ask_amount","ask_price","bid_price","bid_amount"]
[1719419098098,7.3167,136.68,136.61,22.697]
[1719419098303,23.9625,136.69,136.61,22.697]
[1719419098509,27.3166,136.68,136.61,22.697]
[1719419098906,20.0,136.68,136.61,22.697]
[1719419099417,20.0,136.68,136.62,0.17]
[1719419099612,20.0,136.69,136.62,0.34]
[1719419099797,27.3158,136.69,136.62,0.17]
[1719419099997,20.0,136.69,136.62,0.34]
[1719419100308,16.4869,136.72,136.62,27.32]
[1719419100309,20.0,136.71,136.62,27.32]
[1719419100617,7.3157,136.7,136.62,0.34]
[1719419100815,20.0,136.71,136.62,0.34]
[1719419100816,26.98,136.66,136.62,0.34]
[1719419101223,27.3161,136.69,136.61,22.697]
[1719419101419,26.98,136.64,136.61,22.697]
[1719419101603,7.3166,136.68,136.61,22.697]
[1719419101932,20.0,136.67,136.61,22.697]
[1719419104632,20.0,136.68,136.61,22.697]
[1719419105129,20.0,136.68,136.62,0.17]
[1719419105297,26.98,136.67,136.62,0.34]
[1719419105493,20.0,136.7,136.62,0.34]
[1719419105826,26.98,136.66,136.62,0.34]
[1719419106116,7.3159,136.69,136.62,0.34]
[1719419106318,26.98,136.64,136.61,22.697]
[1719419106501,26.98,136.63,136.61,22.697]
[1719419106693,20.0,136.68,136.61,22.697]
[1719419106898,26.98,136.64,136.61,22.697]
[1719419107199,20.0,136.68,136.62,0.17]
[1719419107398,20.0,136.69,136.62,0.17]
[1719419107803,20.0,136.7,136.62,0.34]
[1719419108397,27.3153,136.7,136.62,0.34]
[1719419109511,20.0,136.7,136.62,0.34]
[1719419109708,7.314,136.73,136.65,49.7679]
[1719419109948,11.14588162,136.74,136.65,49.7679]
[1719419110228,7.3137,136.73,136.66,0.34]
[1719419110436,7.3137,136.73,136.66,0.17]
[1719419110910,7.3137,136.73,136.66,0.34]
[1719419111322,20.0,136.72,136.66,0.17]
[1719419111500,3.83268162,136.74,136.66,27.32]
[1719419111700,3.83268162,136.74,136.66,0.34]
[1719419112005,3.83268162,136.74,136.66,27.32]
[1719419112702,11.14578162,136.74,136.66,27.32]
[1719419112899,20.0,136.73,136.66,27.32]
[1719419113099,11.14578162,136.74,136.66,0.34]
[1719419113729,11.14578162,136.74,136.65,22.7879]
[1719419113730,3.83268162,136.74,136.65,22.7879]
[1719419113925,26.98,136.66,136.65,22.7879]
[1719419114233,7.3161,136.69,136.65,22.7879]
[1719419114604,18.4552,136.73,136.65,22.7879]
[1719419114804,20.0,136.72,136.65,22.7879]
[1719419115610,26.98,136.66,136.62,15.4372]
[1719419115920,7.3173,136.67,136.62,15.4372]
[1719419116425,20.0,136.66,136.62,15.4372]
[1719419116927,30.0,136.65,136.59,22.5711]
[1719419117468,30.0,136.65,136.58,0.8513774]
[1719419117723,27.3188,136.64,136.58,0.8513774]
[1719419117921,7.3191,136.63,136.58,0.8513774]
[1719419118220,7.3192,136.63,136.58,0.8513774]
[1719419118412,20.0,136.62,136.58,0.8513774]
[1719419118814,26.98,136.6,136.58,0.8513774]
[1719419119625,30.0,136.61,136.58,0.8513774]
[1719419120214,7.3209,136.6,136.58,0.8513774]
[1719419120609,26.98,136.59,136.58,0.8513774]
[1719419121111,30.0,136.59,136.58,0.8513774]
[1719419121519,27.3193,136.63,136.58,0.8513774]
[1719419122231,7.3198,136.62,136.58,0.8513774]
[1719419122407,16.3607,136.6,136.58,0.8513774]
[1719419122612,50.0,136.59,136.58,0.8513774]
[1719419125440,20.0,136.59,136.58,0.8513774]
[1719419125942,26.98,136.59,136.58,0.8513774]
[1719419126147,7.3196,136.62,136.58,0.8513774]
[1719419126446,20.0,136.61,136.58,0.8513774]
[1719419126731,26.98,136.59,136.58,0.8513774]
[1719419128033,20.0,136.61,136.58,0.8513774]
[1719419128519,20.0,136.62,136.58,0.8513774]
[1719419128726,7.3204,136.61,136.58,0.8513774]
[1719419129134,27.3196,136.62,136.58,0.8513774]
[1719419131415,20.0,136.62,136.58,0.8513774]
[1719419132036,20.0,136.63,136.58,0.8513774]
[1719419132633,27.3191,136.63,136.58,0.8513774]
[1719419132835,20.0,136.63,136.58,0.8513774]
[1719419133229,7.3202,136.61,136.58,0.8513774]
[1719419133818,7.3197,136.62,136.58,0.8513774]
[1719419134014,20.0,136.61,136.58,0.8513774]
[1719419135842,7.3225,136.57,136.5,43.1774]
[1719419136229,20.0,136.56,136.5,43.1774]
[1719419136525,27.3228,136.56,136.5,6.5478]
[1719419136725,26.98,136.51,136.5,6.5478]
[1719419137821,20.0,136.56,136.5,6.5478]
[1719419138133,7.3223,136.57,136.5,6.5478]
[1719419138437,20.0,136.56,136.5,6.5478]
[1719419139122,20.0,136.57,136.5,6.5478]
[1719419139419,20.0,136.58,136.5,6.5478]
[1719419140326,7.3231,136.56,136.5,6.5478]
[1719419140533,20.0,136.55,136.5,6.5478]
[1719419141243,20.0,136.56,136.5,6.5478]
[1719419141841,7.3237,136.55,136.5,6.5478]
[1719419142544,20.0,136.54,136.5,6.5478]
[1719419142932,27.324,136.54,136.5,6.5478]
[1719419143131,20.0,136.54,136.5,6.5478]
[1719419143943,30.0,136.59,136.5,6.5478]
[1719419143944,7.3246,136.53,136.5,6.5478]
[1719419145329,7.324,136.54,136.5,6.5478]
[1719419146039,7.324,136.54,136.49,15.0877]
[1719419146253,18.3082,136.56,136.49,15.0877]
[1719419146254,7.3244,136.53,136.49,15.0877]
[1719419146849,20.0,136.52,136.46,6.0368]
[1719419147064,37.3263,136.5,136.45,16.5864]
[1719419147260,20.0,136.49,136.45,16.5864]
[1719419148131,27.3269,136.49,136.44,0.8513774]
[1719419148345,20.0,136.49,136.44,0.8513774]
[1719419148547,30.0,136.48,136.44,2.3136896]
[1719419148949,20.0,136.49,136.44,2.3136896]
[1719419149165,20.0,136.51,136.45,16.1795]
[1719419150129,20.0,136.52,136.45,16.1795]
[1719419150545,31.15778162,136.52,136.45,16.1795]
[1719419151265,23.83268162,136.52,136.45,16.1795]
[1719419151772,31.15768162,136.52,136.45,16.1795]
[1719419152762,23.83268162,136.52,136.45,16.1795]
[1719419153266,3.83268162,136.52,136.45,16.1795]
[1719419153443,3.83268162,136.52,136.46,0.34]
[1719419153643,27.3237,136.55,136.46,0.17]
[1719419153644,20.0,136.55,136.46,0.17]
[1719419153968,3.83268162,136.54,136.46,0.17]
[1719419154350,11.15668162,136.54,136.46,0.17]
[1719419154556,27.3245,136.53,136.46,0.17]
[1719419154749,7.3245,136.53,136.46,0.17]
[1719419155067,3.83268162,136.54,136.45,16.1795]
[1719419155264,7.3247,136.53,136.45,16.1795]
[1719419155870,11.15658162,136.54,136.45,16.1795]
[1719419156170,20.0,136.53,136.45,16.1795]
[1719419156373,20.0,136.53,136.46,0.17]
[1719419157753,3.83268162,136.54,136.46,0.34]
[1719419157754,23.83268162,136.54,136.46,0.34]
[1719419157975,20.0,136.53,136.46,0.17]
[1719419158166,11.15678162,136.54,136.46,0.17]
[1719419158346,3.83268162,136.54,136.46,0.34]
[1719419158551,3.83268162,136.54,136.47,6.0845]
[1719419158768,3.83268162,136.54,136.48,0.17]
[1719419159150,3.83268162,136.54,136.49,15.9946]
[1719419159368,7.3222,136.57,136.5,0.17]
[1719419159775,31.15448162,136.58,136.5,0.17]
[1719419159979,31.15448162,136.58,136.5,0.34]
[1719419160244,7.3222,136.57,136.5,0.34]
[1719419160461,23.83268162,136.58,136.51,6.4903]
[1719419160745,3.83268162,136.58,136.51,6.4903]
[1719419160945,23.83268162,136.58,136.51,6.4903]
[1719419161373,23.83268162,136.58,136.52,0.17]
[1719419161548,31.15438162,136.58,136.52,0.17]
[1719419162660,7.3228,136.56,136.52,0.17]
[1719419162861,7.3244,136.53,136.51,6.4903]
[1719419163351,7.324,136.54,136.51,6.4903]
[1719419163546,27.95449462,136.58,136.51,6.4903]
[1719419163752,18.3073,136.56,136.49,15.9946]
[1719419164071,7.3257,136.51,136.49,15.9946]
[1719419164452,37.3251,136.52,136.49,15.9946]
[1719419165170,30.0,136.52,136.49,15.9946]
[1719419165551,7.325,136.52,136.47,6.0193]
[1719419166772,38.3096,136.55,136.47,6.0193]
[1719419166952,7.3256,136.51,136.47,6.0193]
[1719419167754,10.04368611,136.54,136.47,6.0193]
[1719419167755,7.3252,136.52,136.47,6.0193]
[1719419167955,27.3254,136.51,136.47,6.0193]
[1719419168761,20.0,136.51,136.47,6.0193]
[1719419169488,20.0,136.51,136.45,15.4195]
[1719419169768,20.0,136.53,136.45,15.4195]
[1719419169961,7.3262,136.5,136.45,15.4195]
[1719419170675,29.87368611,136.53,136.44,7.3397774]
[1719419170860,7.3274,136.48,136.44,7.3397774]
[1719419171261,30.0,136.49,136.44,7.3397774]
[1719419171560,7.3276,136.47,136.44,7.3397774]
[1719419171769,7.3273,136.48,136.44,7.3397774]
[1719419171969,37.3267,136.49,136.44,7.3397774]
[1719419172152,20.0,136.48,136.44,7.3397774]
[1719419174760,7.3279,136.47,136.44,7.3397774]
[1719419175277,27.3273,136.48,136.44,7.3397774]
[1719419177074,20.0,136.48,136.44,0.8513774]
[1719419177261,27.3272,136.48,136.44,0.8513774]
[1719419178665,30.0,136.46,136.44,0.8513774]
[1719419180157,7.3281,136.46,136.44,0.8513774]
[1719419180373,7.328,136.47,136.44,0.8513774]
[1719419180584,7.3282,136.46,136.44,0.8513774]
[1719419181279,7.3286,136.45,136.44,0.8513774]
[1719419182761,7.3284,136.46,136.44,0.8513774]
[1719419183057,7.3278,136.47,136.44,0.8513774]
[1719419183257,20.0,136.48,136.44,0.8513774]
[1719419183258,7.3281,136.46,136.44,0.8513774]
[1719419183468,7.3277,136.47,136.44,0.8513774]
[1719419183881,20.0,136.48,136.44,0.8513774]
[1719419184086,7.3282,136.46,136.44,0.8513774]
[1719419184283,7.3286,136.45,136.44,0.8513774]
[1719419184468,7.3284,136.46,136.44,0.8513774]
[1719419184885,7.3286,136.45,136.44,0.8513774]
[1719419185092,27.3286,136.45,136.44,0.8513774]
[1719419186489,30.0,136.45,136.44,0.8513774]
[1719419187467,7.3276,136.47,136.44,0.8513774]
[1719419189496,25.94781907,136.51,136.44,0.8513774]
[1719419189799,25.94781907,136.51,136.44,8.1802774]
[1719419189800,7.3266,136.49,136.44,8.1802774]
[1719419190003,31.15888162,136.5,136.45,7.3285]
[1719419190171,31.15888162,136.5,136.44,0.8513774]
[1719419190172,7.3266,136.49,136.44,8.1801774]
[1719419190483,7.3271,136.48,136.44,0.8513774]
[1719419191375,7.3276,136.47,136.44,0.8513774]
[1719419191573,18.3179,136.48,136.44,0.8513774]
[1719419191777,7.3285,136.46,136.44,0.8513774]
[1719419192174,7.3286,136.45,136.44,0.8513774]
[1719419192391,27.3286,136.45,136.44,0.8513774]
[1719419192984,20.0,136.45,136.44,0.8513774]
[1719419193790,27.3286,136.45,136.44,0.8513774]
[1719419194377,7.3297,136.43,136.42,0.04343518]
[1719419194690,27.3297,136.43,136.42,0.04343518]
[1719419194878,47.43294049,136.43,136.36,6.3596]
[1719419195081,20.0,136.42,136.36,6.3596]
[1719419195294,7.3323,136.39,136.33,15.6215]
[1719419195473,27.3325,136.38,136.33,15.6215]
[1719419196177,7.3333,136.37,136.32,6.2805]
[1719419196577,27.3326,136.38,136.32,6.2805]
[1719419196897,20.0,136.38,136.32,6.2805]
[1719419197279,20.0,136.4,136.32,6.2805]
[1719419197483,7.3321,136.39,136.32,6.2805]
[1719419197681,27.3327,136.38,136.3,17.1565774]
[1719419197897,20.0,136.38,136.3,17.1565774]
[1719419198276,20.0,136.4,136.3,17.1565774]
[1719419198694,7.332,136.39,136.3,17.1565774]
[1719419198993,20.0,136.38,136.31,1.46548762]
[1719419199197,20.0,136.38,136.3,17.1565774]
[1719419199198,7.3331,136.37,136.3,17.1565774]
[1719419199582,27.3326,136.38,136.3,17.1565774]
[1719419199901,20.0,136.38,136.3,17.1565774]
[1719419200196,20.0,136.4,136.3,17.1565774]
[1719419200703,7.333,136.37,136.3,17.1565774]
[1719419201603,7.3326,136.38,136.3,17.1565774]
[1719419201899,20.0,136.37,136.3,17.1565774]
[1719419202793,27.3334,136.37,136.3,17.1565774]
[1719419203382,37.3336,136.36,136.3,17.1565774]
[1719419203775,30.0,136.36,136.3,17.1565774]
[1719419204976,20.0,136.37,136.31,0.17]
[1719419205180,20.0,136.38,136.31,0.17]
[1719419205601,27.3325,136.38,136.31,0.17]
[1719419205799,48.34608017,136.42,136.31,0.17]
[1719419206007,20.0,136.41,136.31,0.17]
[1719419207098,7.3325,136.38,136.31,0.17]
[1719419207283,20.0,136.41,136.31,0.17]
[1719419207483,7.3323,136.39,136.31,0.17]
[1719419207885,20.0,136.41,136.32,22.0609]
[1719419208093,20.0,136.41,136.33,0.34]
[1719419208295,20.0,136.41,136.37,18.3322]
[1719419208605,20.0,136.42,136.37,25.6649]
[1719419208784,20.0,136.42,136.38,7.3324]
[1719419209404,3.83268162,136.44,136.39,7.3317]
[1719419209405,11.16208162,136.44,136.39,7.3317]
[1719419209613,3.83268162,136.44,136.4,7.3313]
[1719419209819,23.83268162,136.44,136.39,25.661]
[1719419210124,3.83268162,136.44,136.4,7.3312]
[1719419210698,32.76175496,136.48,136.39,18.3294]
[1719419210897,7.3296,136.44,136.39,18.3294]
[1719419211192,7.3285,136.46,136.39,18.3294]
[1719419211421,20.0,136.45,136.39,18.3294]
[1719419211603,27.3287,136.45,136.39,18.3294]
[1719419211907,20.0,136.45,136.39,18.3294]
[1719419212107,7.3294,136.44,136.38,22.0609]
[1719419212493,7.3298,136.43,136.38,22.0609]
[1719419212706,18.3216,136.46,136.38,22.0609]
[1719419212898,7.3307,136.42,136.38,22.0609]
[1719419213789,7.3297,136.43,136.38,22.0609]
[1719419213990,7.3294,136.44,136.38,22.0609]
[1719419214207,20.0,136.43,136.38,22.0609]
[1719419216013,20.0,136.45,136.38,22.0609]
[1719419216196,7.3299,136.43,136.38,22.0609]
[1719419217095,7.3299,136.43,136.38,29.393]
[1719419217313,20.0,136.45,136.38,22.0609]
[1719419217619,7.3294,136.44,136.39,25.6611]
[1719419217798,20.0,136.43,136.39,25.6611]
[1719419218211,27.3298,136.43,136.39,18.3295]
[1719419220998,27.3298,136.43,136.39,19.65821698]
[1719419221819,20.0,136.43,136.39,26.99001698]
[1719419222127,20.0,136.43,136.38,22.0609]
[1719419222128,7.3284,136.46,136.41,18.326]
[1719419222315,27.3289,136.45,136.41,18.326]
[1719419222810,7.3292,136.44,136.39,7.3316]
[1719419222996,20.0,136.45,136.39,18.3285]
[1719419223198,20.0,136.47,136.39,18.3285]
[1719419223507,7.329,136.45,136.4,7.331]
[1719419224313,7.3284,136.46,136.41,25.6578]
[1719419224497,20.0,136.45,136.41,25.6578]
[1719419225722,7.3278,136.47,136.42,7.3302]
[1719419225897,16.0998,136.49,136.42,7.3298]
[1719419225898,20.0,136.46,136.42,7.3298]
[1719419226099,20.0,136.48,136.44,7.3291]
[1719419226305,27.3273,136.48,136.43,18.3242]
[1719419226518,31.15998162,136.48,136.43,25.6538]
[1719419226903,7.3276,136.47,136.43,18.3242]
[1719419227107,7.3281,136.46,136.41,7.3306]
[1719419227399,27.3274,136.48,136.43,7.3297]
[1719419227620,7.3277,136.47,136.42,25.6556]
[1719419227911,31.15978162,136.48,136.43,7.3296]
[1719419228316,23.83268162,136.48,136.44,7.3291]
[1719419228619,31.15998162,136.48,136.39,36.6583]
[1719419228915,31.15998162,136.48,136.43,7.3296]
[1719419229096,23.83268162,136.48,136.41,18.3257]
[1719419229296,3.83268162,136.48,136.42,7.3298]
[1719419229511,11.15998162,136.48,136.42,7.3298]
[1719419230092,11.15998162,136.48,136.43,7.3297]
[1719419231018,7.3276,136.47,136.42,7.3301]
[1719419231524,11.15998162,136.48,136.42,7.3301]
[1719419231831,11.15998162,136.48,136.43,25.6538]
[1719419232325,7.3276,136.47,136.43,18.3243]
[1719419232500,3.83268162,136.47,136.43,25.6539]
[1719419232898,7.3277,136.47,136.42,7.3301]
[1719419233120,7.3272,136.48,136.43,7.3297]
[1719419233324,27.3263,136.5,136.44,7.3287]
[1719419233511,3.83268162,136.48,136.43,18.323]
[1719419233721,23.83268162,136.48,136.44,7.3287]
[1719419234118,20.0,136.48,136.44,7.3287]
[1719419235340,20.06968162,136.52,136.45,18.3207]
[1719419235512,27.3258,136.51,136.46,7.3277]
[1719419236211,7.3258,136.51,136.46,7.3277]
[1719419236937,27.39498162,136.52,136.47,7.3274]
[1719419237110,23.5623,136.52,136.47,7.3274]
[1719419237427,27.3254,136.51,136.47,7.3274]
[1719419237627,27.3254,136.51,136.46,7.3279]
[1719419238133,20.0,136.51,136.44,21.9297]
[1719419238326,7.3267,136.49,136.44,21.9297]
[1719419238511,7.3261,136.5,136.45,7.3285]
[1719419238819,20.0,136.51,136.44,29.2587]
[1719419238820,7.3266,136.49,136.44,29.2587]
[1719419239323,7.3262,136.5,136.45,7.3286]
[1719419240610,27.3258,136.51,136.46,7.3281]
[1719419241004,20.0,136.51,136.47,7.3274]
[1719419241410,20.0,136.51,136.48,7.3268]
[1719419241929,20.0,136.52,136.48,7.3268]
[1719419242240,20.0,136.52,136.48,7.3269]
[1719419242417,27.3245,136.53,136.48,7.3269]
[1719419242624,20.0,136.53,136.49,7.3263]
[1719419242811,27.3244,136.53,136.48,7.3268]
[1719419243016,20.0,136.53,136.48,7.3268]
[1719419243214,20.0,136.53,136.49,7.3263]
[1719419243510,20.0,136.53,136.48,7.3269]
[1719419243703,20.0,136.53,136.44,21.9297]
[1719419243904,7.3263,136.5,136.45,7.3283]
[1719419244337,38.3103,136.54,136.46,18.32]
[1719419244516,7.3256,136.51,136.46,18.32]
[1719419245021,7.3256,136.51,136.46,25.6481]
[1719419245621,7.326,136.5,136.46,18.32]
[1719419246324,38.3103,136.54,136.44,29.2588]
[1719419246736,7.3262,136.5,136.44,29.2588]
[1719419246923,7.3262,136.5,136.45,7.3286]
[1719419247120,30.0,136.49,136.45,7.3286]
[1719419249936,20.0,136.48,136.4,6.52]
[1719419250131,7.3283,136.46,136.41,25.6564]
[1719419250520,7.3278,136.47,136.42,7.3302]
[1719419250937,27.3272,136.48,136.43,7.3297]
[1719419252143,20.0,136.48,136.44,7.3291]
[1719419252828,20.0,136.48,136.45,7.3286]
[1719419253225,20.0,136.48,136.45,18.3214]
[1719419253429,27.3271,136.48,136.43,7.3294]
[1719419253846,7.3277,136.47,136.42,25.6547]
[1719419254444,7.3277,136.47,136.43,7.3297]
[1719419254742,27.3272,136.48,136.43,7.3297]
[1719419255843,20.0,136.48,136.39,15.3143]
[1719419256044,20.0,136.48,136.4,0.17]
[1719419256850,20.0,136.48,136.4,18.4982]
[1719419257549,7.3279,136.47,136.42,7.3301]
[1719419257730,20.0,136.46,136.42,7.3301]
[1719419258535,20.0,136.46,136.4,0.17]
[1719419258737,30.0,136.49,136.47,7.3274]
[1719419258940,7.3252,136.52,136.47,7.3274]
[1719419259246,20.0,136.51,136.47,7.3272]
[1719419259751,27.3254,136.51,136.47,7.3272]
[1719419260148,7.3254,136.51,136.46,18.319]
[1719419260352,7.3254,136.51,136.46,25.6469]
[1719419261154,15.6986,136.54,136.43,18.3231]
[1719419261453,7.3266,136.49,136.44,7.3288]
[1719419261828,7.3261,136.5,136.45,7.3285]
[1719419262225,7.3256,136.51,136.46,7.3281]
[1719419263131,38.3122,136.53,136.46,7.3281]
[1719419263132,7.325,136.52,136.47,7.3274]
[1719419263452,15.6986,136.54,136.46,25.6476]
[1719419263453,27.3255,136.51,136.46,25.6476]
[1719419265030,15.6986,136.54,136.46,18.3197]
[1719419265232,7.325,136.52,136.47,7.3274]
[1719419265433,7.325,136.52,136.48,7.327]
[1719419265638,7.3246,136.53,136.48,7.327]
[1719419265845,20.0,136.52,136.48,7.327]
[1719419266440,27.3249,136.52,136.48,7.327]
[1719419267050,27.3249,136.52,136.47,7.3273]
[1719419267948,15.6986,136.54,136.48,18.3168]
[1719419268134,15.6986,136.54,136.49,7.3263]
[1719419268338,23.0227,136.54,136.49,7.3263]
[1719419268838,7.3244,136.53,136.49,7.3263]
[1719419269035,7.3244,136.53,136.48,25.6436]
[1719419269240,23.0226,136.54,136.49,7.4965]
[1719419269561,7.3235,136.55,136.5,7.3256]
[1719419269767,43.84858162,136.58,136.51,7.3253]
[1719419270062,43.84858162,136.58,136.5,18.3145]
[1719419270063,20.0,136.57,136.52,7.3248]
[1719419270554,7.3228,136.56,136.52,7.3248]
[1719419270858,7.3228,136.56,136.5,18.3145]
[1719419270859,7.3228,136.56,136.51,7.3253]
[1719419271158,7.3233,136.55,136.51,7.3253]
[1719419271360,7.3228,136.56,136.51,7.3253]
[1719419271557,7.3228,136.56,136.5,18.3145]
[1719419271558,27.3224,136.57,136.52,7.3248]
[1719419271755,7.3224,136.57,136.52,7.3248]
[1719419272159,21.7115,136.58,136.51,7.3252]
[1719419272160,7.3228,136.56,136.51,7.3252]
[1719419272463,7.3244,136.53,136.48,25.6442]
[1719419272757,7.324,136.54,136.49,7.3264]
[1719419273447,7.3235,136.55,136.5,7.3259]
[1719419273859,7.323,136.56,136.51,7.3254]
[1719419274239,7.3224,136.57,136.52,7.3248]
[1719419274445,7.3222,136.57,136.53,7.324]
[1719419274645,7.3222,136.57,136.52,7.3248]
[1719419274848,15.4802,136.58,136.49,33.6313]
[1719419274849,20.0,136.56,136.49,33.6313]
[1719419275051,20.0,136.56,136.5,7.3259]
[1719419275266,7.3237,136.55,136.5,7.3259]
[1719419276149,7.3238,136.54,136.5,7.3259]
[1719419276555,7.3238,136.54,136.49,40.7876]
[1719419278966,7.3235,136.55,136.5,7.3259]
[1719419280245,7.3243,136.53,136.49,33.4613]
[1719419280448,7.3241,136.54,136.49,25.6426]
[1719419281271,27.323,136.56,136.51,7.3254]
[1719419282065,7.3233,136.55,136.51,7.3254]
[1719419282368,7.3233,136.55,136.5,7.3258]
[1719419282872,7.3239,136.54,136.5,7.3258]
[1719419284650,27.09,136.51,136.5,7.3258]
[1719419285475,20.0,136.56,136.51,18.3134]
[1719419285776,7.3234,136.55,136.51,25.6386]
[1719419286151,7.3234,136.55,136.51,18.3134]
[1719419286668,7.325,136.52,136.48,18.3164]
[1719419286861,6.5276,136.56,136.46,6.1615]
[1719419287170,7.3266,136.49,136.45,18.3205]
[1719419287658,7.3266,136.49,136.45,25.6491]
[1719419287855,7.3262,136.5,136.45,25.6491]
[1719419289044,7.3256,136.51,136.45,18.3205]
[1719419289261,41.42156129,136.55,136.47,18.319]
[1719419289468,7.3249,136.52,136.47,25.6464]
[1719419289768,7.3245,136.53,136.47,18.319]
[1719419289955,7.3247,136.53,136.48,7.327]
[1719419290155,20.0,136.52,136.49,7.3264]
[1719419290460,20.0,136.52,136.47,18.319]
[1719419290461,20.0,136.52,136.48,7.3268]
[1719419290869,20.0,136.52,136.47,25.6465]
[1719419291055,20.0,136.54,136.47,25.6465]
[1719419291257,7.3251,136.52,136.47,25.6465]
[1719419291458,7.3251,136.52,136.48,7.327]
[1719419292371,7.325,136.52,136.48,7.327]
[1719419292578,7.325,136.52,136.47,25.6463]
[1719419293559,7.3246,136.53,136.48,7.3269]
[1719419293761,20.0,136.52,136.48,7.3269]
[1719419294758,27.325,136.52,136.48,7.3269]
[1719419294953,20.0,136.52,136.48,7.3269]
[1719419295358,27.3249,136.52,136.48,7.3269]
[1719419296178,20.0,136.52,136.48,7.3269]
[1719419296878,27.3249,136.52,136.48,7.3269]
[1719419297080,20.0,136.52,136.48,7.3269]
[1719419297472,7.3246,136.53,136.48,7.3269]
[1719419297775,20.0,136.52,136.48,7.3269]
[1719419298980,7.3246,136.53,136.48,7.3269]
[1719419299177,15.1288,136.55,136.5,7.3259]
[1719419299480,27.3239,136.54,136.49,25.6422]
[1719419299789,7.3226,136.57,136.51,18.3135]
[1719419299958,7.3232,136.56,136.51,25.6387]
[1719419303778,22.7517,136.59,136.54,7.3235]
[1719419303976,20.0,136.58,136.54,7.3235]
[1719419304292,20.0,136.58,136.53,25.6349]
[1719419304293,27.3218,136.58,136.53,25.6349]
[1719419304481,7.3204,136.61,136.56,7.3226]
[1719419304675,289.34156129,136.62,136.55,18.308]
[1719419304676,27.3209,136.6,136.55,25.6311]
[1719419304874,27.3212,136.59,136.55,18.308]
[1719419305076,7.3212,136.59,136.55,18.308]
[1719419305471,20.0,136.58,136.54,7.3237]
[1719419305666,27.3217,136.58,136.53,7.3241]
[1719419305871,20.0,136.58,136.54,7.3237]
[1719419306570,20.0,136.58,136.55,7.3232]
[1719419306799,20.0,136.59,136.55,7.3232]
[1719419307105,27.3212,136.59,136.54,25.6329]
[1719419310670,27.3215,136.59,136.54,25.6329]
[1719419311085,7.3218,136.58,136.54,18.3093]
[1719419311466,7.3218,136.58,136.53,7.3242]
[1719419311870,20.0,136.59,136.52,18.3123]
[1719419311871,20.0,136.57,136.52,18.3123]
[1719419312070,20.0,136.59,136.52,25.6371]
[1719419312267,20.0,136.59,136.53,7.3243]
[1719419312486,20.0,136.59,136.54,7.3236]
[1719419312791,7.3214,136.59,136.54,7.3237]
[1719419312982,20.0,136.58,136.54,7.3237]
[1719419313177,27.3217,136.58,136.54,7.3237]
[1719419314389,20.0,136.58,136.55,7.3232]
[1719419314692,20.0,136.58,136.54,25.6331]
[1719419315396,27.3218,136.58,136.54,18.3095]
[1719419315895,20.0,136.58,136.49,36.631]
[1719419316095,7.3231,136.56,136.51,7.3253]
[1719419316279,20.0,136.55,136.51,7.3253]
[1719419316488,20.0,136.55,136.52,7.3248]
[1719419316884,20.0,136.56,136.52,7.3248]
[1719419319779,20.0,136.56,136.51,18.3134]